bitfinex-derivatives/quotes_SOLF0:USTF0_20240820
["timestamp","ask_amount","ask_price","bid_price","bid_amount"]
[1724163106383,49.57,145.06,144.98,5.00065573]
[1724163106980,0.05134965,145.06,145.03,0.05077674]
[1724163107184,49.57,145.04,144.97,1.6511]
[1724163107579,49.57,145.04,144.99,3.4471]
[1724163107778,49.57,145.04,144.92,49.57]
[1724163107779,49.57,145.0,144.91,5.08445203]
[1724163107980,49.57,145.0,144.92,1.5881]
[1724163108581,49.57,145.0,144.95,8.75630178]
[1724163109185,49.57,144.98,144.95,5.30820178]
[1724163109383,49.57,144.96,144.91,5.08445203]
[1724163109783,3.4483,144.95,144.91,5.08445203]
[1724163109986,49.57,144.96,144.91,5.08445203]
[1724163110191,49.57,144.93,144.91,5.08445203]
[1724163110378,3.449,144.92,144.91,5.08445203]
[1724163111279,49.57,144.93,144.87,5.23514093]
[1724163111475,49.57,144.9,144.87,5.23514093]
[1724163112389,3.4499,144.88,144.87,5.23514093]
[1724163112587,49.57,144.9,144.87,5.23514093]
[1724163113089,53.04698202,144.93,144.83,5.50665512]
[1724163113090,49.57,144.88,144.83,5.50665512]
[1724163113388,49.57,144.84,144.83,5.50665512]
[1724163113981,49.57,144.87,144.83,5.50665512]
[1724163114184,49.61763171,144.87,144.84,0.05097552]
[1724163114384,49.57,144.85,144.79,5.51553926]
[1724163114590,49.57,144.8,144.79,5.51553926]
[1724163114787,49.57,144.8,144.75,5.61462335]
[1724163114989,49.57,144.76,144.75,5.61462335]
[1724163115285,49.57,144.76,144.59,10.34455155]
[1724163115587,49.57,144.75,144.65,3.1297]
[1724163115893,49.57,144.73,144.65,3.1297]
[1724163116087,49.57,144.7,144.65,3.1297]
[1724163116991,49.57,144.7,144.59,53.00125155]
[1724163116992,49.57,144.7,144.59,3.43125155]
[1724163117293,49.57,144.71,144.57,3.4571]
[1724163117294,20.66,144.71,144.57,3.4571]
[1724163117492,20.66,144.71,144.56,5.77061648]
[1724163117493,49.57,144.61,144.56,5.77061648]
[1724163118185,49.57,144.58,144.56,5.77061648]
[1724163118489,49.57,144.57,144.52,6.09663423]
[1724163118794,49.57,144.54,144.52,6.09663423]
[1724163119091,0.04474849,144.7,144.52,6.09663423]
[1724163119391,49.57,144.6,144.56,3.4575]
[1724163119794,49.57,144.62,144.52,6.09663423]
[1724163120091,0.04474849,144.7,144.54,49.57]
[1724163120290,0.04474849,144.7,144.52,9.58691171]
[1724163120588,49.57,144.69,144.63,3.4559]
[1724163120893,49.57,144.66,144.58,1.6527]
[1724163121391,49.57,144.66,144.52,9.58691171]
[1724163121392,49.57,144.62,144.52,6.09663423]
[1724163121884,49.57,144.62,144.52,59.2079064]
[1724163122088,49.57,144.62,144.52,55.66663423]
[1724163122292,49.57,144.62,144.52,59.16160623]
[1724163122594,59.74,144.59,144.52,6.09663423]
[1724163122997,59.74,144.57,144.52,6.09663423]
[1724163123301,59.74,144.59,144.52,6.09663423]
[1724163123589,59.74,144.62,144.52,6.09663423]
[1724163123890,0.05026267,144.63,144.53,3.42638016]
[1724163124192,59.74,144.62,144.52,9.53338583]
[1724163124394,63.1956,144.65,144.52,69.27338583]
[1724163124589,59.74,144.62,144.52,6.09663423]
[1724163124901,59.74,144.6,144.52,6.09663423]
[1724163125192,59.74,144.65,144.52,69.24918579]
[1724163125693,59.74,144.65,144.52,68.52917338]
[1724163125896,0.04611147,144.59,144.52,68.52917338]
[1724163126096,59.74,144.62,144.52,8.78917338]
[1724163126489,59.74,144.6,144.52,5.37662182]
[1724163126689,59.74,144.6,144.56,3.4575]
[1724163126992,59.74,144.6,144.52,5.37662182]
[1724163127193,59.74,144.55,144.52,5.37662182]
[1724163127395,59.74,144.55,144.48,6.39180724]
[1724163127396,59.74,144.53,144.48,6.39180724]
[1724163127586,59.74,144.5,144.48,6.39180724]
[1724163129303,59.74,144.5,144.44,6.01709541]
[1724163129497,59.74,144.49,144.44,6.01709541]
[1724163129796,59.74,144.49,144.45,3.4602]
[1724163130106,3.4586,144.52,144.44,6.01709541]
[1724163130107,59.74,144.54,144.48,0.04770747]
[1724163130589,59.74,144.51,144.48,0.04770747]
[1724163131096,59.74,144.51,144.45,1.5139]
[1724163131296,59.74,144.51,144.45,4.9741]
[1724163131492,59.74,144.49,144.44,6.01709541]
[1724163131799,59.74,144.46,144.44,6.01709541]
[1724163131992,59.74,144.46,144.4,6.42190041]
[1724163132300,59.74,144.42,144.4,6.42190041]
[1724163132790,59.74,144.44,144.4,6.42190041]
[1724163132992,59.74,144.42,144.4,6.42190041]
[1724163133393,3.4612,144.41,144.4,6.42190041]
[1724163133591,59.74,144.42,144.36,6.20956122]
[1724163134000,3.4615,144.4,144.36,6.20956122]
[1724163134191,59.74,144.37,144.36,6.20956122]
[1724163134395,59.74,144.37,144.32,6.50902184]
[1724163134601,59.74,144.39,144.32,6.50902184]
[1724163135103,0.05165867,144.43,144.32,66.24902184]
[1724163135401,0.05165867,144.43,144.34,59.74]
[1724163135591,59.74,144.49,144.36,59.74]
[1724163135792,59.74,144.47,144.35,61.2629]
[1724163136001,59.74,144.47,144.43,3.4607]
[1724163136194,59.74,144.44,144.35,1.5229]
[1724163136395,59.74,144.48,144.35,1.5229]
[1724163136788,59.74,144.46,144.35,1.5229]
[1724163137103,59.74,144.49,144.36,59.74]
[1724163137498,59.74,144.46,144.35,1.5229]
[1724163137689,0.04983252,144.43,144.4,0.04843568]
[1724163138205,59.74,144.49,144.4,0.04843568]
[1724163138390,59.74,144.46,144.4,0.04843568]
[1724163138803,59.74,144.49,144.4,0.04843568]
[1724163138993,59.74,144.49,144.37,59.74]
[1724163139392,59.74,144.46,144.35,1.5229]
[1724163139899,0.04829781,144.44,144.42,0.04784191]
[1724163140091,59.74,144.53,144.42,0.04784191]
[1724163140304,59.74,144.51,144.42,0.04784191]
[1724163140890,59.74,144.53,144.49,3.459]
[1724163141095,59.74,144.53,144.42,0.04784191]
[1724163141602,59.74,144.53,144.41,59.74]
[1724163142102,59.74,144.56,144.44,59.74]
[1724163142292,59.74,144.58,144.45,3.2036]
[1724163142499,59.74,144.58,144.45,6.58401246]
[1724163142700,59.74,144.58,144.45,3.2036]
[1724163142892,59.74,144.58,144.45,6.73897253]
[1724163143102,63.1971,144.58,144.53,3.4581]
[1724163143411,0.05122532,144.52,144.45,6.73897253]
[1724163143698,63.1973,144.58,144.53,3.4581]
[1724163143903,59.74,144.58,144.46,0.04606618]
[1724163144298,59.74,144.54,144.46,0.04606618]
[1724163144897,59.74,144.54,144.45,3.2036]
[1724163145096,27.8408,144.68,144.45,3.2036]
[1724163145297,59.74,144.53,144.48,3.4593]
[1724163145497,59.74,144.5,144.45,3.2036]
[1724163145704,59.74,144.5,144.45,2.62038995]
[1724163146699,59.74,144.5,144.46,3.4599]
[1724163147109,59.74,144.48,144.45,6.08058995]
[1724163147402,59.74,144.48,144.39,27.66]
[1724163147605,59.74,144.43,144.39,27.66]
[1724163148007,0.04646242,144.51,144.39,27.66]
[1724163148008,59.74,144.49,144.39,27.66]
[1724163148209,59.74,144.49,144.4,3.38248484]
[1724163148403,59.74,144.51,144.39,87.4]
[1724163148907,59.74,144.51,144.4,1.6193]
[1724163149101,59.74,144.49,144.4,1.66597898]
[1724163149300,59.74,144.49,144.4,5.20060994]
[1724163149909,3.4588,144.51,144.46,3.4597]
[1724163150105,3.459,144.5,144.46,3.4597]
[1724163150406,59.74,144.49,144.44,3.4603]
[1724163150703,59.74,144.46,144.35,1.5743]
[1724163150912,0.05037753,144.49,144.47,0.04695422]
[1724163151106,59.74,144.48,144.35,1.5743]
[1724163151305,59.74,144.44,144.4,3.4612]
[1724163151806,3.4606,144.44,144.4,3.4612]
[1724163152010,59.74,144.46,144.39,3.4616]
[1724163152314,59.74,144.44,144.35,1.5743]
[1724163152699,0.04478028,144.43,144.41,0.04958686]
[1724163152903,3.50548028,144.43,144.41,0.04958686]
[1724163153103,0.04478028,144.43,144.35,1.5743]
[1724163153307,0.04478028,144.43,144.41,0.04516457]
[1724163153508,0.04478028,144.43,144.32,6.50902184]
[1724163153509,59.74,144.42,144.32,6.50902184]
[1724163153811,59.74,144.44,144.33,59.74]
[1724163154114,59.74,144.46,144.33,59.74]
[1724163154500,59.74,144.43,144.36,3.4623]
[1724163154709,59.74,144.43,144.32,6.50902184]
[1724163155110,3.4611,144.42,144.32,6.50902184]
[1724163155306,0.0483824,144.41,144.38,0.05239618]
[1724163155704,0.0483824,144.41,144.33,59.74]
[1724163156314,0.0483824,144.41,144.32,6.50902184]
[1724163156315,59.7883824,144.41,144.32,6.50902184]
[1724163156810,59.74,144.44,144.32,6.50902184]
[1724163157312,0.0523884,144.38,144.37,3.4619]
[1724163157708,0.0523884,144.38,144.35,0.04874013]
[1724163157914,59.74,144.36,144.32,6.50902184]
[1724163158509,59.74,144.36,144.35,0.05004106]
[1724163158817,63.2023,144.36,144.35,0.05004106]
[1724163159117,0.04982308,144.38,144.35,0.05004106]
[1724163159311,0.04982308,144.38,144.35,3.51254106]
[1724163159504,0.04982308,144.38,144.35,0.05004106]
[1724163159908,0.04982308,144.38,144.35,3.51254106]
[1724163160109,0.04982308,144.38,144.35,0.05004106]
[1724163160509,49.83,144.47,144.36,49.83]
[1724163160910,49.83,144.47,144.39,3.4616]
[1724163161122,49.83,144.47,144.36,51.3525]
[1724163161515,49.83,144.45,144.39,3.4616]
[1724163161917,49.83,144.43,144.36,1.5225]
[1724163162112,0.04622229,144.43,144.4,0.05146598]
[1724163162413,49.87622229,144.43,144.4,0.05146598]
[1724163162718,49.83,144.41,144.32,6.50902184]
[1724163163307,49.83,144.38,144.32,6.50902184]
[1724163163513,49.83,144.38,144.32,9.97212184]
[1724163163822,49.83,144.38,144.32,6.02680448]
[1724163164010,49.83,144.38,144.32,9.49000448]
[1724163164207,49.83,144.38,144.32,6.02680448]
[1724163164408,60.0511,144.42,144.32,6.02680448]
[1724163164719,60.0511,144.42,144.34,0.05121806]
[1724163165019,59.82,144.4,144.34,0.05121806]
[1724163165227,0.04472725,144.36,144.35,3.4624]
[1724163165422,0.04472725,144.36,144.34,0.05121806]
[1724163165827,0.04472725,144.36,144.34,3.4626]
[1724163166030,59.82,144.37,144.34,3.4626]
[1724163166321,59.82,144.35,144.32,5.6056224]
[1724163166522,59.82,144.33,144.32,5.0687224]
[1724163166816,59.82,144.35,144.32,5.0687224]
[1724163167215,0.04703996,144.34,144.32,5.0687224]
[1724163167619,59.82,144.33,144.31,0.04446962]
[1724163168323,59.82,144.33,144.29,6.64386543]
[1724163168716,0.04703996,144.34,144.29,6.64386543]
[1724163169118,0.04703996,144.34,144.33,3.463]
[1724163169313,0.04703996,144.34,144.29,6.64386543]
[1724163169828,60.0511,144.42,144.29,69.97732642]
[1724163170012,60.0511,144.42,144.3,1.6291]
[1724163170626,59.82,144.39,144.3,1.6291]
[1724163171214,59.82,144.37,144.29,6.64386543]
[1724163171419,59.82,144.37,144.31,3.4633]
[1724163171819,0.05094616,144.36,144.33,0.04464149]
[1724163172412,59.82,144.35,144.29,6.64386543]
[1724163172618,59.82,144.31,144.29,6.64386543]
[1724163172822,59.82,144.34,144.29,6.64386543]
[1724163173329,59.82,144.31,144.25,6.77330295]
[1724163173624,59.82,144.33,144.25,6.77330295]
[1724163173819,59.82,144.36,144.25,6.77330295]
[1724163174022,3.4626,144.35,144.25,6.77330295]
[1724163174215,59.82,144.36,144.25,6.77330295]
[1724163174728,59.82,144.38,144.26,59.82]
[1724163175229,0.04859357,144.31,144.3,3.4638]
[1724163175721,0.04859357,144.31,144.3,3.03863987]
[1724163176217,59.82,144.38,144.26,59.82]
[1724163176525,59.82,144.36,144.25,6.77330295]
[1724163176725,59.82,144.36,144.31,3.4634]
[1724163176926,0.04531321,144.32,144.31,3.4634]
[1724163177721,63.282,144.38,144.26,59.82]
[1724163177932,59.82,144.38,144.26,59.82]
[1724163178233,63.2821,144.38,144.26,59.82]
[1724163178424,0.04454725,144.33,144.26,59.82]
[1724163178625,0.04454725,144.33,144.32,3.4633]
[1724163179021,59.82,144.4,144.28,59.82]
[1724163179221,59.82,144.4,144.34,3.4626]
[1724163179427,3.4618,144.39,144.28,59.82]
[1724163179823,59.82,144.4,144.28,59.82]
[1724163180037,0.04581189,144.35,144.33,0.04694572]
[1724163180221,59.82,144.43,144.33,0.04694572]
[1724163180429,59.82,144.43,144.4,3.4612]
[1724163181023,59.82,144.45,144.33,1.5584]
[1724163181224,59.82,144.45,144.34,59.82]
[1724163181729,59.82,144.45,144.41,3.461]
[1724163182228,0.04429194,144.44,144.37,59.82]
[1724163182932,59.82,144.55,144.37,59.82]
[1724163182933,59.82,144.5,144.42,0.04550179]
[1724163183444,59.82,144.45,144.42,0.04550179]
[1724163183626,59.82,144.43,144.33,1.5584]
[1724163183934,59.82,144.48,144.26,1.6524]
[1724163183935,59.82,144.35,144.26,1.6524]
[1724163184330,59.82,144.35,144.26,1.1524]
[1724163184930,59.82,144.35,144.31,3.4634]
[1724163185132,59.82,144.35,144.26,1.1524]
[1724163185534,59.82,144.35,144.31,3.4634]
[1724163185733,0.04802956,144.32,144.31,3.4634]
[1724163186137,59.82,144.38,144.29,0.04795057]
[1724163186740,59.82,144.43,144.3,59.82]
[1724163187131,63.2802,144.45,144.4,3.4611]
[1724163187442,59.82,144.45,144.33,6.60922168]
[1724163187639,3.4607,144.43,144.33,3.1557]
[1724163187838,0.05201938,144.38,144.35,0.05144791]
[1724163188134,20.66,144.53,144.35,0.05144791]
[1724163188135,41.56296492,144.69,144.36,59.82]
[1724163188335,59.82,144.5,144.39,59.82]
[1724163188642,3.4581,144.54,144.45,3.46]
[1724163188838,59.82,144.52,144.39,59.82]
[1724163189138,59.82,144.48,144.36,41.22108923]
[1724163189345,59.82,144.45,144.35,27.68]
[1724163189650,59.82,144.45,144.36,1.6351]
[1724163190141,59.82,144.43,144.33,3.1557]
[1724163190342,59.82,144.41,144.33,3.1557]
[1724163190741,63.2813,144.41,144.36,3.4622]
[1724163190939,59.82,144.41,144.33,3.1557]
[1724163191239,63.2811,144.41,144.39,0.04593049]
[1724163191439,63.2811,144.41,144.33,6.6185]
[1724163191440,0.05058111,144.38,144.33,3.1557]
[1724163191632,59.82,144.41,144.33,3.1557]
[1724163192044,0.0532537,144.37,144.33,3.1557]
[1724163192244,0.0532537,144.37,144.34,0.04940592]
[1724163192638,0.0532537,144.37,144.34,3.51220592]
[1724163192840,0.0532537,144.37,144.34,0.04940592]
[1724163193434,59.82,144.43,144.34,0.04940592]
[1724163193746,59.82,144.43,144.36,3.4622]
[1724163194043,59.82,144.43,144.34,0.04940592]
[1724163194342,3.4609,144.42,144.37,3.4619]
[1724163194545,3.4609,144.42,144.33,3.1557]
[1724163194738,59.82,144.43,144.33,3.1557]
[1724163194939,0.04705177,144.4,144.37,0.0462857]
[1724163195449,0.04705177,144.4,144.37,3.5081857]
[1724163195833,0.04705177,144.4,144.37,0.0462857]
[1724163196540,59.82,144.38,144.37,0.0462857]
[1724163197942,59.82,144.38,144.27,41.25823068]
[1724163198141,59.86705177,144.4,144.27,3.1639]
[1724163198142,59.82,144.35,144.27,3.1639]
[1724163198354,3.4628,144.34,144.29,3.4639]
[1724163198740,59.82,144.35,144.27,3.1639]
[1724163198943,3.50931848,144.32,144.3,0.04986331]
[1724163199134,59.82,144.33,144.27,3.1639]
[1724163199349,3.4633,144.32,144.27,3.1639]
[1724163199546,3.51485577,144.32,144.3,0.05286913]
[1724163200043,0.05155577,144.32,144.3,0.05286913]
[1724163201845,0.05155577,144.32,144.3,3.51666913]
[1724163202051,0.05155577,144.32,144.3,0.05286913]
[1724163204743,0.05155577,144.32,144.3,3.51656913]
[1724163204946,0.05155577,144.32,144.3,0.05286913]
[1724163205238,3.4618,144.39,144.3,0.05286913]
[1724163205442,59.82,144.4,144.28,59.82]
[1724163205849,59.82,144.4,144.32,3.4632]
[1724163206147,59.82,144.37,144.27,3.1639]
[1724163206351,0.05155431,144.33,144.31,0.04725654]
[1724163206853,0.05155431,144.33,144.31,3.51065654]
[1724163207242,0.05155431,144.33,144.31,0.04725654]
[1724163208158,0.05155431,144.33,144.32,3.4633]
[1724163209046,49.87,144.37,144.31,0.04725654]
[1724163209444,3.4625,144.36,144.27,3.1639]
[1724163209647,0.5015,144.45,144.27,53.0339]
[1724163209850,49.87,144.4,144.29,49.87]
[1724163210153,3.4617,144.39,144.35,3.4625]
[1724163210539,3.4617,144.39,144.29,49.87]
[1724163210743,0.04863849,144.37,144.35,0.04537538]
[1724163212249,0.04863849,144.37,144.36,3.4623]
[1724163212454,49.87,144.44,144.35,0.04537538]
[1724163212652,3.4609,144.42,144.38,3.4617]
[1724163212848,49.87,144.44,144.33,51.3905]
[1724163213450,0.05294676,144.4,144.37,3.51155616]
[1724163213758,0.05294676,144.4,144.37,0.04965616]
[1724163214255,0.509,144.52,144.37,0.04965616]
[1724163214458,20.62163462,144.62,144.42,49.87]
[1724163214747,3.4586,144.52,144.46,3.4599]
[1724163214955,49.87,144.51,144.43,1.6244]
[1724163215455,3.459,144.5,144.45,3.46]
[1724163215848,49.87,144.46,144.38,41.2267384]
[1724163216053,49.87,144.44,144.36,1.6321]
[1724163216348,53.3306,144.44,144.39,3.4614]
[1724163216746,49.87,144.44,144.36,1.6321]
[1724163217060,49.87,144.46,144.36,1.6321]
[1724163217357,49.87,144.43,144.36,1.6321]
[1724163217555,49.87,144.43,144.41,3.461]
[1724163218349,49.87,144.46,144.38,0.05052685]
[1724163218552,0.04647299,144.43,144.38,0.05052685]
[1724163219050,0.05053008,144.42,144.39,0.04980765]
[1724163219352,0.05053008,144.42,144.4,3.4612]
[1724163219658,0.05053008,144.42,144.39,0.04980765]
[1724163219959,59.82053008,144.42,144.39,0.04980765]
[1724163220761,0.05053008,144.42,144.39,0.04980765]
[1724163221151,0.05053008,144.42,144.39,3.51140765]
[1724163221454,0.05053008,144.42,144.39,0.04980765]
[1724163221651,0.05053008,144.42,144.41,3.4611]
[1724163223058,59.77,144.47,144.44,3.4603]
[1724163223355,3.4595,144.48,144.44,3.4603]
[1724163224059,59.77,144.49,144.43,3.4606]
[1724163224257,0.04815425,144.47,144.45,0.05056204]
[1724163224451,3.50795425,144.47,144.45,0.05056204]
[1724163224765,59.77,144.46,144.45,0.05056204]
[1724163225459,63.2299,144.46,144.45,0.05056204]
[1724163225761,0.04815425,144.47,144.45,0.05056204]
[1724163226055,59.77,144.46,144.36,84.09546053]
[1724163226256,59.77,144.46,144.36,42.86421386]
[1724163226560,59.77,144.46,144.36,1.6321]
[1724163226857,0.144,144.51,144.36,1.6321]
[1724163226858,59.77,144.49,144.36,61.4021]
[1724163227061,0.04919058,144.44,144.41,0.0452069]
[1724163227253,59.77,144.53,144.41,63.18074588]
[1724163227447,59.77,144.53,144.41,59.77]
[1724163227747,59.77,144.53,144.47,3.4596]
[1724163227946,59.77,144.53,144.44,3.50929077]
[1724163228150,0.04891516,144.5,144.47,0.05177384]
[1724163228353,0.04891516,144.5,144.48,3.4593]
[1724163229159,0.04891516,144.5,144.49,3.4592]
[1724163230355,63.2275,144.56,144.48,1.6272]
[1724163230661,63.2282,144.54,144.5,3.4588]
[1724163230960,59.77,144.54,144.48,1.6272]
[1724163231460,0.1957,144.59,144.5,0.04863311]
[1724163231461,0.05325648,144.52,144.5,0.04863311]
[1724163231658,3.4577,144.56,144.52,3.4585]
[1724163231855,0.04704433,144.52,144.5,0.05311297]
[1724163232053,59.77,144.58,144.5,0.05311297]
[1724163232456,59.77,144.6,144.51,3.42452043]
[1724163232655,59.77,144.58,144.5,0.05311297]
[1724163232963,59.77,144.58,144.48,61.3972]
[1724163232964,59.77,144.58,144.48,1.6272]
[1724163233159,0.04530444,144.54,144.52,0.04607209]
[1724163233753,0.04530444,144.54,144.53,3.4583]
[1724163234264,59.77,144.58,144.52,0.04607209]
[1724163234450,3.4568,144.59,144.52,0.04607209]
[1724163234663,59.77,144.6,144.52,3.45342756]
[1724163234865,63.2267,144.6,144.55,3.4577]
[1724163235453,3.50220097,144.59,144.56,0.04704383]
[1724163236168,0.04540097,144.59,144.56,3.50434383]
[1724163236460,0.04540097,144.59,144.56,0.04704383]
[1724163237358,59.77,144.63,144.56,0.04704383]
[1724163237566,59.77,144.69,144.56,0.04704383]
[1724163237567,59.77,144.65,144.56,0.04704383]
[1724163237960,63.2254,144.65,144.6,3.4564]
[1724163238462,59.77,144.63,144.53,1.705]
[1724163238669,83.93181892,144.69,144.61,0.04460747]
[1724163238864,59.77,144.62,144.53,1.705]
[1724163239258,59.77,144.58,144.48,1.6272]
[1724163239564,59.77,144.53,144.42,225.0]
[1724163239765,59.77,144.53,144.44,3.2283]
[1724163240367,0.05210553,144.49,144.47,0.04793886]
[1724163240961,0.05210553,144.49,144.48,3.4595]
[1724163241262,49.77,144.55,144.47,0.04793886]
[1724163241664,3.4583,144.53,144.49,3.4591]
[1724163242058,3.4589,144.51,144.44,3.2283]
[1724163242263,49.77,144.53,144.44,1.6455]
[1724163242667,3.4588,144.51,144.46,3.4598]
[1724163242860,49.77,144.53,144.44,1.6455]
[1724163243060,0.04086287,144.52,144.5,0.0482917]
[1724163243265,3.4587,144.51,144.5,0.0482917]
[1724163243568,0.04086287,144.52,144.44,1.6455]
[1724163243762,0.04086287,144.52,144.49,3.51055668]
[1724163244065,49.77,144.55,144.49,3.51055668]
[1724163244269,0.04086287,144.52,144.49,3.51055668]
[1724163244475,0.04086287,144.52,144.5,3.459]
[1724163244665,0.04086287,144.52,144.44,51.4155]
[1724163245163,0.04086287,144.52,144.46,49.77]
[1724163245371,3.4572,144.58,144.49,49.77]
[1724163245562,3.4572,144.58,144.5,5.19674528]
[1724163245869,3.4569,144.59,144.55,3.4576]
[1724163246066,49.77,144.63,144.53,49.77]
[1724163246470,3.4559,144.63,144.58,3.4569]
[1724163246871,49.77,144.64,144.54,3.3815696]
[1724163247178,49.77,144.64,144.57,0.04384475]
[1724163247976,3.4561,144.63,144.58,3.4568]
[1724163248180,49.77,144.64,144.58,3.4568]
[1724163248583,3.4561,144.63,144.58,3.4568]
[1724163248882,49.77,144.66,144.57,0.04384475]
[1724163249272,3.4559,144.63,144.58,3.457]
[1724163249884,3.4559,144.63,144.59,0.05199363]
[1724163250085,3.4557,144.64,144.59,0.05199363]
[1724163250272,1.2955,144.68,144.61,3.4562]
[1724163250273,49.77,144.68,144.61,3.4562]
[1724163250474,49.77,144.68,144.63,0.04598802]
[1724163250671,49.77,144.66,144.63,0.04598802]
[1724163251081,3.4557,144.64,144.63,0.04363594]
[1724163251877,49.77,144.66,144.63,0.04363594]
[1724163251878,3.4555,144.65,144.63,0.04363594]
[1724163253083,1.3334,144.73,144.63,0.04363594]
[1724163253282,49.77,144.71,144.63,0.04363594]
[1724163253480,49.77,144.71,144.63,3.43910344]
[1724163253678,49.77,144.71,144.6,1.5728]
[1724163253874,49.77,144.71,144.66,0.04914743]
[1724163254276,49.77,144.69,144.66,0.04914743]
[1724163255282,49.77,144.71,144.66,3.50414743]
[1724163255587,49.77,144.71,144.66,0.04914743]
[1724163255986,53.224,144.71,144.66,0.04914743]
[1724163256283,53.20061059,144.77,144.66,0.04914743]
[1724163256284,49.77,144.69,144.66,0.04914743]
[1724163256490,3.4549,144.68,144.66,0.04914743]
[1724163256787,49.77,144.69,144.62,5.09066328]
[1724163256981,49.77,144.69,144.67,3.4549]
[1724163257173,49.77,144.69,144.66,0.05176563]
[1724163257581,53.2249,144.67,144.66,0.05176563]
[1724163257781,49.77,144.67,144.61,3.4562]
[1724163257982,49.77,144.67,144.57,51.2971]
[1724163258785,49.77,144.67,144.61,0.04505357]
[1724163258984,0.04631817,144.63,144.61,0.04505357]
[1724163259689,49.77,144.69,144.61,3.49505854]
[1724163259984,49.77,144.71,144.62,3.49045102]
[1724163260178,49.77,144.73,144.62,5.12255102]
[1724163260379,3.4542,144.7,144.65,3.4552]
[1724163260576,49.77,144.73,144.63,1.6509]
[1724163260781,49.77,144.73,144.63,51.4209]
[1724163260981,3.4541,144.71,144.67,3.4548]
[1724163261384,49.77,144.7,144.64,1.6902]
[1724163261686,49.77,144.7,144.67,0.04676316]
[1724163262086,53.2244,144.7,144.67,0.04676316]
[1724163262284,49.77,144.73,144.67,0.04676316]
[1724163262487,49.77,144.73,144.64,1.6902]
[1724163262793,49.77,144.73,144.69,0.04532506]
[1724163263792,49.77,144.75,144.71,3.4539]
[1724163264094,49.77,144.75,144.72,0.05329522]
[1724163264290,3.453,144.75,144.72,0.05329522]
[1724163264487,3.453,144.75,144.64,1.6902]
[1724163264488,49.77,144.73,144.64,1.6902]
[1724163264883,3.4543,144.7,144.66,3.455]
[1724163265086,49.77,144.71,144.64,1.6902]
[1724163265392,3.4544,144.7,144.64,1.6902]
[1724163265590,0.04972697,144.68,144.66,0.04448994]
[1724163265895,3.4549,144.67,144.66,0.04448994]
[1724163266095,0.04972697,144.68,144.66,0.04448994]
[1724163268282,49.77,144.75,144.66,0.04448994]
[1724163268787,3.4536,144.73,144.62,51.4021]
[1724163268983,49.77,144.77,144.66,49.77]
[1724163269290,49.77,144.77,144.72,3.4535]
[1724163269496,49.77,144.79,144.68,49.77]
[1724163269695,49.77,144.79,144.69,3.52393866]
[1724163269995,3.4524,144.78,144.73,3.4534]
[1724163270194,49.77,144.79,144.7,0.05054864]
[1724163270499,49.77,144.79,144.69,1.5652]
[1724163270500,49.77,144.77,144.73,0.0468359]
[1724163270691,49.77,144.74,144.73,0.0468359]
[1724163270893,3.4539,144.72,144.67,1.5363]
[1724163271091,49.77,144.74,144.67,1.5363]
[1724163271889,49.77,144.74,144.69,0.04562907]
[1724163271890,0.05288439,144.72,144.69,0.04562907]
[1724163272398,0.05288439,144.72,144.71,3.454]
[1724163272988,0.05288439,144.72,144.69,0.04562907]
[1724163273695,0.05288439,144.72,144.69,3.5378122]
[1724163273895,0.05288439,144.72,144.71,3.454]
[1724163275393,0.05288439,144.72,144.69,0.04562907]